bitfinex-derivatives/quotes_SOLF0:USTF0_20250905
["timestamp","ask_amount","ask_price","bid_price","bid_amount"]
[1757058277065,9.69605513,207.86,207.77,4.23817653]
[1757058277366,7.5,207.86,207.78,4.23817653]
[1757058277570,7.5,207.86,207.77,0.56]
[1757058277764,7.5,207.86,207.78,4.23834255]
[1757058277966,7.5,207.86,207.77,0.56]
[1757058278166,7.5,207.86,207.78,4.23873156]
[1757058278470,7.5,207.86,207.77,0.56]
[1757058278671,7.5,207.86,207.78,4.2383262]
[1757058278976,7.5,207.86,207.79,4.2383262]
[1757058279275,7.5,207.86,207.77,0.56]
[1757058279571,7.5,207.86,207.78,4.23789227]
[1757058279763,7.5,207.86,207.79,4.23789227]
[1757058279963,7.5,207.86,207.77,0.56]
[1757058280163,7.5,207.86,207.78,4.23790283]
[1757058280362,7.5,207.86,207.79,4.23790283]
[1757058280572,7.5,207.86,207.77,0.56]
[1757058280774,7.5,207.86,207.78,4.23774485]
[1757058281071,7.5,207.86,207.77,0.56]
[1757058281277,7.5,207.86,207.78,4.23816024]
[1757058281570,7.5,207.86,207.79,4.23816024]
[1757058281779,7.5,207.86,207.77,0.56]
[1757058281964,7.5,207.86,207.78,4.23765084]
[1757058282169,7.5,207.86,207.79,4.23773418]
[1757058282362,7.5,207.86,207.77,0.56]
[1757058282566,7.5,207.86,207.78,4.23745507]
[1757058282767,7.5,207.86,207.77,0.56]
[1757058282968,7.5,207.86,207.78,4.23774684]
[1757058283172,7.5,207.86,207.77,0.56]
[1757058283373,7.5,207.86,207.78,4.23788621]
[1757058283674,7.5,207.86,207.77,0.56]
[1757058283877,7.5,207.86,207.78,4.23799266]
[1757058284073,7.5,207.86,207.77,0.56]
[1757058284273,7.5,207.86,207.78,4.23796096]
[1757058284475,7.5,207.86,207.77,0.56]
[1757058284773,7.5,207.86,207.78,4.23785828]
[1757058284963,7.5,207.86,207.77,0.56]
[1757058285166,7.5,207.86,207.78,4.23785827]
[1757058285371,7.5,207.86,207.71,5.49605513]
[1757058285372,7.5,207.84,207.71,0.56]
[1757058285565,7.5,207.84,207.72,4.23951532]
[1757058285771,7.5,207.84,207.73,4.23951532]
[1757058285971,7.5,207.84,207.74,4.23951532]
[1757058286276,7.5,207.84,207.75,4.23951532]
[1757058286472,7.5,207.84,207.71,0.56]
[1757058286776,7.5,207.84,207.72,4.24041032]
[1757058286976,7.5,207.84,207.73,4.24041032]
[1757058287175,7.5,207.84,207.74,4.24041032]
[1757058287376,7.5,207.84,207.75,4.24041032]
[1757058287576,7.5,207.84,207.76,4.24041032]
[1757058287773,7.5,207.84,207.71,0.56]
[1757058287972,7.5,207.84,207.72,4.2411303]
[1757058288177,7.5,207.84,207.73,4.2411303]
[1757058288379,7.5,207.84,207.74,4.2411303]
[1757058288574,7.5,207.84,207.75,4.2411303]
[1757058288778,7.5,207.84,207.77,0.56]
[1757058289178,7.5,207.84,207.78,4.24238194]
[1757058289380,7.5,207.84,207.77,0.56]
[1757058289579,7.5,207.84,207.78,4.24219542]
[1757058289774,7.5,207.84,207.77,0.56]
[1757058289971,7.5,207.84,207.78,4.24220599]
[1757058290177,7.5,207.84,207.77,0.56]
[1757058290475,7.5,207.84,207.78,4.24311677]
[1757058290667,7.5,207.84,207.77,0.56]
[1757058290868,7.5,207.84,207.78,4.24292965]
[1757058291069,7.5,207.84,207.77,0.56]
[1757058291270,7.5,207.84,207.78,4.24442142]
[1757058291473,8.05,207.87,207.79,4.24442142]
[1757058291670,8.05,207.87,207.75,0.56]
[1757058291870,8.05,207.87,207.76,4.24457809]
[1757058292179,8.05,207.87,207.77,4.24457809]
[1757058292380,8.05,207.87,207.78,4.24457809]
[1757058292579,8.05,207.87,207.79,4.24457809]
[1757058292781,8.05,207.87,207.75,0.56]
[1757058292981,8.05,207.87,207.76,4.2458415]
[1757058293181,8.05,207.87,207.77,4.2458415]
[1757058293476,8.05,207.87,207.78,4.2458415]
[1757058293671,8.05,207.87,207.79,4.2458415]
[1757058293877,8.05,207.87,207.75,0.56]
[1757058294077,8.05,207.87,207.76,4.24699362]
[1757058294272,8.05,207.87,207.77,4.24699362]
[1757058294573,8.05,207.87,207.78,4.24699362]
[1757058294785,8.05,207.87,207.79,4.24699362]
[1757058294977,8.05,207.87,207.8,4.24699362]
[1757058295178,8.05,207.87,207.75,0.56]
[1757058295383,8.05,207.87,207.76,4.25121464]
[1757058295585,8.05,207.87,207.77,4.25121464]
[1757058295783,8.05,207.87,207.78,4.25121464]
[1757058295983,8.05,207.87,207.79,4.25121464]
[1757058296283,8.05,207.87,207.8,4.25121464]
[1757058296484,8.05,207.87,207.75,0.56]
[1757058296684,8.05,207.87,207.76,4.25211933]
[1757058296876,8.05,207.87,207.77,4.25211933]
[1757058297079,8.05,207.87,207.78,4.25211933]
[1757058297280,8.05,207.87,207.79,4.25211933]
[1757058297485,8.05,207.87,207.8,4.25211933]
[1757058297687,8.05,207.87,207.81,4.25211933]
[1757058297887,8.05,207.9,207.82,4.25211933]
[1757058298184,8.05,207.9,207.83,4.25159145]
[1757058298383,8.05,207.9,207.8,0.56]
[1757058298584,8.05,207.9,207.81,4.25166326]
[1757058298783,8.05,207.9,207.82,4.25166326]
[1757058298984,8.05,207.9,207.83,4.25166326]
[1757058299185,8.05,207.9,207.8,0.56]
[1757058299386,8.05,207.9,207.81,4.25669343]
[1757058299588,1.40443434,207.88,207.82,4.25669343]
[1757058299787,1.40443434,207.88,207.83,4.25669343]
[1757058299987,8.05,207.87,207.8,0.56]
[1757058300187,8.05,207.87,207.81,4.25669343]
[1757058300387,0.03188209,207.86,207.82,4.81669343]
[1757058300583,0.03188209,207.86,207.83,4.81669343]
[1757058300788,0.03188209,207.86,207.84,4.81644845]
[1757058300988,0.03188209,207.86,207.85,4.25644845]
[1757058301888,8.08188209,207.86,207.85,4.25644845]
[1757058302186,8.08188209,207.86,207.82,0.56]
[1757058302385,8.08188209,207.86,207.83,4.25710651]
[1757058302589,8.08188209,207.86,207.84,4.25710651]
[1757058302790,0.03188209,207.86,207.85,4.25686602]
[1757058303191,8.08188209,207.86,207.85,4.25686602]
[1757058303586,0.03188209,207.86,207.85,4.25686602]
[1757058303890,0.03188209,207.86,207.85,4.81686602]
[1757058304093,0.03188209,207.86,207.85,4.25686602]
[1757058305084,0.03188209,207.86,207.85,4.81686602]
[1757058307291,0.03188209,207.86,207.85,4.25686602]
[1757058307697,0.03188209,207.86,207.85,4.81686602]
[1757058308696,0.03188209,207.86,207.85,4.25686602]
[1757058308898,8.08188209,207.86,207.85,4.25686602]
[1757058309099,8.08188209,207.86,207.85,4.25223799]
[1757058309301,0.03188209,207.86,207.85,4.25223799]
[1757058309600,0.03188209,207.86,207.85,4.81223799]
[1757058309899,0.03188209,207.86,207.85,4.25223799]
[1757058311091,0.03188209,207.86,207.85,4.81223799]
[1757058312596,0.03188209,207.86,207.85,4.80913079]
[1757058319506,0.03188209,207.86,207.85,6.21356513]
[1757058320310,7.57,207.94,207.85,5.65356513]
[1757058320501,7.57,207.94,207.88,0.52]
[1757058320704,7.57,207.94,207.9,0.52]
[1757058321407,7.57,207.94,207.88,0.52]
[1757058321608,7.57,207.94,207.91,0.52]
[1757058321998,7.57,207.96,207.9,0.03482057]
[1757058323205,8.97443434,207.96,207.9,0.03482057]
[1757058324311,1.40443434,207.94,207.9,0.03482057]
[1757058325602,7.57,207.93,207.9,0.03482057]
[1757058325805,7.57,208.0,207.9,0.03482057]
[1757058326006,7.57,207.93,207.9,0.03482057]
[1757058326406,1.40443434,207.94,207.9,0.03482057]
[1757058326609,7.57,207.93,207.9,0.03482057]
[1757058326908,1.40443434,207.94,207.9,0.03482057]
[1757058327115,7.57,207.93,207.9,0.03482057]
[1757058327403,7.57,207.94,207.9,0.03482057]
[1757058327998,1.40443434,207.95,207.9,0.03482057]
[1757058328608,7.57,207.94,207.9,0.03482057]
[1757058329003,7.57,207.92,207.9,0.03482057]
[1757058329409,1.40443434,207.93,207.9,0.03482057]
[1757058329811,7.57,207.92,207.9,0.03482057]
[1757058330413,7.57,207.99,207.9,0.03482057]
[1757058330609,108.72,208.0,207.9,0.03482057]
[1757058330808,7.57,207.93,207.9,0.03482057]
[1757058331011,1.40443434,207.94,207.9,0.03482057]
[1757058331412,7.57,207.93,207.9,0.03482057]
[1757058331607,7.57,208.02,207.9,0.03482057]
[1757058331813,1.40443434,207.95,207.9,0.03482057]
[1757058332009,1.40443434,207.95,207.87,1.92443434]
[1757058332010,8.97443434,207.95,207.87,1.92443434]
[1757058332205,1.40443434,207.96,207.9,0.03456432]
[1757058332611,8.97443434,207.96,207.9,0.03456432]
[1757058333014,7.57,207.96,207.9,0.03456432]
[1757058333315,8.97443434,207.96,207.9,0.03456432]
[1757058333507,7.57,207.96,207.9,0.55456432]
[1757058334008,7.57,207.96,207.91,4.25190916]
[1757058334213,7.57,207.96,207.92,4.25183234]
[1757058334415,7.57,207.96,207.93,0.52]
[1757058335217,8.97443434,207.99,207.93,0.52]
[1757058335518,0.03073854,207.97,207.93,0.52]
[1757058335717,7.60073854,207.97,207.9,0.55456432]
[1757058336015,7.60073854,207.97,207.91,4.25004603]
[1757058336217,7.57,207.96,207.93,0.52]
[1757058337215,0.03073854,207.97,207.91,0.52]
[1757058337414,7.60073854,207.97,207.93,0.52]
[1757058337613,7.57,207.95,207.92,4.25044559]
[1757058337817,8.97443434,207.96,207.9,0.55456432]
[1757058338017,1.40443434,207.96,207.91,4.25095696]
[1757058338316,1.40443434,207.96,207.9,0.55456432]
[1757058338317,8.97443434,207.96,207.9,0.55456432]
[1757058338518,7.57,207.95,207.91,4.77122706]
[1757058338718,7.57,207.95,207.91,0.52]
[1757058340220,7.57,207.95,207.92,4.25087074]
[1757058340518,7.57,207.95,207.91,0.52]
[1757058341223,7.57,207.95,207.92,4.25156819]
[1757058341424,7.57,207.95,207.91,0.52]
[1757058341617,7.57,207.95,207.92,4.25128281]
[1757058341920,0.03073854,207.97,207.91,0.52]
[1757058342124,7.57,207.96,207.92,4.25128281]
[1757058342425,0.03073854,207.97,207.91,0.52]
[1757058342625,0.03073854,207.97,207.92,4.252245]
[1757058342816,7.57,207.96,207.91,0.52]
[1757058343122,1.40443434,207.94,207.9,0.03456432]
[1757058343818,7.57,207.93,207.9,0.03456432]
[1757058344324,1.40443434,207.94,207.9,0.03456432]
[1757058345322,7.57,207.93,207.9,0.03456432]
[1757058345820,1.40443434,207.94,207.9,0.03456432]
[1757058346628,7.57,207.91,207.9,0.03456432]
[1757058348527,7.57,207.91,207.8,0.52]
[1757058348732,7.53,207.87,207.81,4.25861241]
[1757058348927,7.53,207.87,207.82,4.25861241]
[1757058349126,1.40443434,207.86,207.83,4.25861241]
[1757058349328,7.53,207.85,207.77,0.55]
[1757058349523,7.53,207.85,207.78,4.26045967]
[1757058349723,1.40443434,207.84,207.79,4.26045967]
[1757058349928,7.53,207.83,207.8,4.26045967]
[1757058350127,7.53,207.83,207.81,4.26045967]
[1757058350328,7.53,207.83,207.82,4.26045967]
[1757058350727,7.53,207.83,207.77,0.55]
[1757058350935,8.93443434,207.84,207.78,4.26170363]
[1757058351233,7.53,207.8,207.79,4.26170363]
[1757058351422,8.93443434,207.8,207.72,0.55]
[1757058351622,8.93443434,207.8,207.73,4.26293766]
[1757058351824,8.93443434,207.8,207.74,4.26293766]
[1757058352025,1.40443434,207.8,207.75,4.26293766]
[1757058352231,1.40443434,207.8,207.76,4.26293766]
[1757058352531,7.53,207.79,207.72,0.55]
[1757058352733,7.53,207.79,207.73,4.26127457]
[1757058353032,1.40443434,207.79,207.74,4.26127457]
[1757058353331,7.53,207.78,207.75,4.26127457]
[1757058353532,8.93443434,207.79,207.72,0.55]
[1757058353731,8.93443434,207.79,207.73,4.25976643]
[1757058353926,7.53,207.78,207.74,4.25976643]
[1757058354135,7.53,207.78,207.75,4.25976643]
[1757058354327,7.53,207.78,207.72,0.55]
[1757058354527,12.42,207.87,207.68,0.55]
[1757058354528,7.53,207.74,207.68,0.55]
[1757058354831,8.93443434,207.75,207.69,4.26008178]
[1757058355032,7.53,207.74,207.7,4.26008178]
[1757058355328,7.53,207.74,207.67,0.55]
[1757058355533,7.53,207.74,207.68,4.25664051]
[1757058355728,1.40443434,207.75,207.65,1.40443434]
[1757058355729,1.40443434,207.75,207.69,4.80664051]
[1757058355931,7.53,207.74,207.69,0.55]
[1757058356126,7.53,207.75,207.69,0.55]
[1757058357826,7.53,207.79,207.71,1.40443434]
[1757058358631,7.53,207.79,207.74,1.40443434]
[1757058358830,7.53,207.82,207.74,1.95443434]
[1757058359430,7.53,207.82,207.7,2.74570735]
[1757058359630,7.53,207.82,207.71,4.24695746]
[1757058359832,7.53,207.82,207.7,2.74570735]
[1757058360031,7.53,207.82,207.71,4.22498048]
[1757058360230,7.53,207.82,207.7,2.74570735]
[1757058360435,7.53,207.82,207.71,4.2242605]
[1757058360631,7.53,207.82,207.7,2.74570735]
[1757058361034,7.53,207.82,207.71,4.22362725]
[1757058361234,7.53,207.82,207.71,0.55]
[1757058364437,7.53,207.82,207.73,0.55]
[1757058364640,7.53,207.91,207.76,0.55]
[1757058367133,2.19570735,207.89,207.76,0.55]
[1757058367342,7.53,207.88,207.74,4.21916928]
[1757058367639,7.53,207.85,207.72,0.55]
[1757058367834,7.53,207.85,207.7,2.19570735]
[1757058368429,7.53,207.85,207.69,0.55]
[1757058368935,9.72570735,207.85,207.69,0.55]
[1757058370242,7.53,207.81,207.69,0.55]
[1757058373037,7.53,207.81,207.71,0.55]
[1757058373232,7.53,207.81,207.74,0.55]
[1757058375049,7.53,207.81,207.7,2.74570735]
[1757058376338,7.53,207.81,207.71,4.21748388]
[1757058376545,7.53,207.81,207.7,2.74570735]
[1757058376744,7.53,207.81,207.71,4.21759515]
[1757058376944,7.53,207.81,207.7,2.74570735]
[1757058377140,7.53,207.81,207.71,4.21759515]
[1757058377336,7.53,207.81,207.72,0.55]
[1757058377946,7.73,207.83,207.68,0.57]
[1757058378144,2.19570735,207.81,207.68,0.57]
[1757058378445,7.73,207.8,207.68,0.57]
[1757058380043,7.73,207.8,207.69,4.22036934]
[1757058380343,7.73,207.8,207.71,0.57]
[1757058380651,7.73,207.8,207.72,4.22150792]
[1757058380944,7.73,207.8,207.71,0.57]
[1757058381142,7.73,207.8,207.7,2.19570735]
[1757058381143,309.8,207.94,207.69,4.3325]
[1757058381338,7.73,207.88,207.73,0.57]
[1757058381539,7.73,207.88,207.74,4.22318614]
[1757058381746,7.73,207.88,207.73,0.57]
[1757058381946,7.73,207.88,207.74,4.22411981]
[1757058382247,7.73,207.88,207.73,0.57]
[1757058382451,7.73,207.88,207.74,4.22497913]
[1757058382639,7.73,207.88,207.73,0.57]
[1757058382848,7.73,207.88,207.74,4.2253634]
[1757058383049,7.73,207.88,207.73,0.57]
[1757058383250,7.73,207.88,207.74,4.22651779]
[1757058383449,7.73,207.88,207.75,4.22651779]
[1757058383648,7.73,207.88,207.73,0.57]
[1757058383846,7.73,207.88,207.74,4.22834349]
[1757058384049,7.73,207.88,207.76,0.56]
[1757058384554,7.73,207.88,207.72,2.75570735]
[1757058384845,7.73,207.88,207.74,0.56]
[1757058385051,7.73,207.88,207.75,4.22983573]
[1757058385247,7.73,207.88,207.76,4.22983573]
[1757058385449,7.73,207.88,207.74,0.56]
[1757058385650,7.73,207.88,207.75,4.2317748]
[1757058385844,7.73,207.88,207.74,0.56]
[1757058386149,7.73,207.85,207.74,0.56]
[1757058386447,7.73,207.85,207.75,4.23439946]
[1757058386657,7.73,207.85,207.74,0.56]
[1757058386951,9.92570735,207.85,207.75,4.23407854]
[1757058387245,9.92570735,207.85,207.69,0.56]
[1757058387552,2.19570735,207.82,207.7,4.23831079]
[1757058387854,7.73,207.81,207.71,4.23831079]
[1757058388046,7.73,207.81,207.72,4.23831079]
[1757058388352,7.73,207.81,207.73,4.24073926]
[1757058388547,7.73,207.81,207.69,0.56]
[1757058388748,7.73,207.81,207.67,77.18417457]
[1757058388749,7.73,207.81,207.71,0.56]
[1757058388948,7.73,207.81,207.72,4.24073871]
[1757058389147,7.73,207.81,207.73,4.24073871]
[1757058389348,7.73,207.81,207.71,0.56]
[1757058389654,7.73,207.81,207.72,4.26239506]
[1757058389953,7.73,207.81,207.73,4.26239506]
[1757058390147,7.73,207.81,207.74,4.26188052]
[1757058390348,7.73,207.81,207.71,0.56]
[1757058390545,7.73,207.81,207.72,4.26462849]
[1757058390846,7.73,207.81,207.73,4.26462849]
[1757058391054,7.73,207.81,207.74,4.26462849]
[1757058391248,7.73,207.81,207.75,4.26462849]
[1757058391450,7.73,207.83,207.76,4.26462849]
[1757058391649,7.73,207.83,207.71,0.56]
[1757058391852,7.73,207.83,207.72,4.26779743]
[1757058392055,7.73,207.83,207.73,4.26779743]
[1757058392351,7.73,207.83,207.74,4.26779743]
[1757058392653,7.73,207.83,207.75,4.26779743]
[1757058392843,7.73,207.83,207.76,4.26779743]
[1757058393044,7.73,207.83,207.71,0.56]
[1757058393247,7.73,207.83,207.72,4.2706347]
[1757058393446,7.73,207.83,207.73,4.2706347]
[1757058393646,7.73,207.83,207.74,4.2706347]
[1757058393853,7.73,207.83,207.75,4.8306347]
[1757058394050,7.73,207.83,207.76,4.2706347]
[1757058394244,7.73,207.83,207.77,4.2706347]
[1757058394442,7.73,207.83,207.78,4.2706347]
[1757058394653,7.73,207.83,207.72,0.56]
[1757058394852,7.73,207.83,207.73,4.27344179]
[1757058395055,7.73,207.83,207.74,4.27344179]
[1757058395242,7.73,207.83,207.75,4.27344179]
[1757058395448,9.92570735,207.83,207.76,4.27344179]
[1757058395745,9.92570735,207.83,207.77,4.27344179]
[1757058395949,9.92570735,207.83,207.72,0.56]
[1757058396146,9.92570735,207.83,207.73,4.27556077]
[1757058396349,9.92570735,207.83,207.74,4.27556077]
[1757058396542,9.92570735,207.83,207.75,4.27686329]
[1757058396747,7.73,207.83,207.76,4.27686329]
[1757058396949,7.73,207.83,207.72,0.56]
[1757058397254,7.73,207.83,207.73,4.27666506]
[1757058397451,7.73,207.83,207.74,4.83666506]
[1757058397647,7.73,207.83,207.75,4.27666506]
[1757058397853,7.73,207.83,207.76,4.27666506]
[1757058398056,7.73,207.83,207.77,4.27666506]
[1757058398447,7.73,207.83,207.74,0.56]
[1757058398649,7.73,207.83,207.75,4.27593118]
[1757058398947,7.73,207.83,207.73,0.56]
[1757058399456,7.73,207.89,207.76,0.56]
[1757058399648,7.73,207.89,207.77,4.27371021]
[1757058400156,7.73,207.89,207.78,0.56]
[1757058401247,309.8,207.94,207.78,0.56]
[1757058401553,7.73,207.93,207.81,0.56]
[1757058402347,7.73,207.93,207.82,2.19570735]
[1757058402549,7.73,207.93,207.83,0.56]
[1757058402748,7.73,207.93,207.84,4.27164354]
[1757058402948,7.73,207.93,207.85,4.83164354]
[1757058403149,7.73,207.93,207.86,4.27164354]
[1757058403455,7.73,207.9,207.87,4.30574742]
[1757058403652,0.03146589,207.91,207.88,4.27164354]
[1757058403845,7.73,207.95,207.81,0.56]
[1757058404051,2.19570735,207.93,207.82,4.2628975]
[1757058404255,7.73,207.92,207.83,4.2628975]
[1757058404449,7.73,207.92,207.84,4.2628975]
[1757058404654,7.73,207.92,207.85,4.2628975]
[1757058404953,7.73,207.92,207.86,4.2628975]
[1757058405255,7.73,207.95,207.87,4.2628975]
[1757058405556,7.73,207.95,207.84,0.56]
[1757058405756,7.73,207.95,207.85,4.25945802]
[1757058405956,7.73,207.95,207.86,4.25945802]
[1757058406156,7.73,207.95,207.88,0.56]
[1757058406454,7.73,207.99,207.89,4.25633211]
[1757058406648,7.73,207.99,207.88,0.56]
[1757058406848,7.73,207.99,207.89,4.25616092]
[1757058407049,7.73,207.99,207.82,6.12648575]
[1757058407257,7.73,207.96,207.83,4.81671741]
[1757058407454,7.73,207.96,207.84,4.25671741]
[1757058407649,7.73,207.96,207.85,4.25671741]
[1757058407853,7.73,207.94,207.86,4.25671741]
[1757058408053,7.73,207.94,207.83,0.56]
[1757058408254,7.73,207.94,207.84,4.25634271]
[1757058408558,7.73,207.94,207.83,0.56]
[1757058408559,7.73,207.94,207.85,4.25634271]
[1757058408760,7.73,207.94,207.86,4.25572627]
[1757058408960,7.73,207.94,207.83,0.56]
[1757058409157,7.73,207.94,207.84,4.25667007]
[1757058409362,7.73,207.94,207.85,4.25667007]
[1757058409556,7.73,207.94,207.83,0.56]
[1757058409761,7.73,207.94,207.84,4.25905871]
[1757058410057,7.73,207.94,207.83,0.56]
[1757058410254,7.73,207.94,207.84,4.26239832]
[1757058410454,7.73,207.94,207.83,0.56]
[1757058410654,7.73,207.94,207.84,4.26169567]
[1757058410854,7.73,207.94,207.83,0.56]
[1757058411057,7.73,207.94,207.85,0.57]
[1757058412465,7.73,207.94,207.86,4.25913516]
[1757058412664,7.73,207.94,207.85,0.57]
[1757058412864,7.73,207.94,207.86,4.25807739]
[1757058413065,7.73,207.94,207.87,4.25807739]
[1757058413267,7.73,207.94,207.85,0.57]
[1757058413562,7.73,207.94,207.86,4.25716409]
[1757058413759,7.73,207.94,207.87,4.25716409]
[1757058414063,7.73,207.94,207.85,0.57]
[1757058414265,7.73,207.94,207.86,4.25729203]
[1757058414463,7.73,207.94,207.85,0.57]
[1757058414663,7.73,207.94,207.86,4.25623459]
[1757058414863,7.73,207.94,207.85,0.57]
[1757058415066,7.73,207.94,207.86,4.25546837]
[1757058415263,7.73,207.94,207.85,0.57]
[1757058415460,7.73,207.94,207.86,4.2533612]
[1757058415658,7.73,207.94,207.85,0.57]
[1757058415854,7.73,207.94,207.86,4.25323449]
[1757058416066,7.73,207.94,207.85,0.57]
[1757058416263,7.73,207.94,207.86,4.25338557]
[1757058416466,7.73,207.94,207.85,0.57]
[1757058416663,7.73,207.94,207.86,4.25200878]
[1757058416861,7.73,207.94,207.79,8.2612784]
[1757058416862,7.73,207.94,207.81,0.57]
[1757058417062,7.73,207.94,207.82,4.25272912]
[1757058417262,7.73,207.94,207.83,4.25272912]
[1757058417462,7.73,207.94,207.84,4.25272912]
[1757058417764,7.73,207.94,207.81,0.57]
[1757058417959,7.73,207.94,207.83,0.57]
[1757058418157,7.73,207.94,207.84,4.25235414]
[1757058418364,7.73,207.94,207.83,0.57]
[1757058418565,7.73,207.94,207.84,4.25054235]
[1757058418864,7.73,207.94,207.83,0.57]
[1757058419067,7.67,207.93,207.8,0.57]
[1757058419270,7.67,207.9,207.81,4.25122068]
[1757058419459,7.67,207.9,207.78,0.57]
[1757058419667,7.67,207.9,207.79,4.25573703]
[1757058419964,7.67,207.9,207.8,4.25602467]
[1757058420161,7.67,207.9,207.78,0.57]
[1757058420361,9.86570735,207.9,207.79,4.25543881]
[1757058420561,9.86570735,207.9,207.78,0.57]
[1757058420963,9.86570735,207.9,207.79,4.25564655]
[1757058421160,7.67,207.9,207.78,0.57]
[1757058421363,7.67,207.9,207.8,0.57]
[1757058421565,74.26473739,207.97,207.81,4.25560072]
[1757058421765,1.40419616,207.87,207.8,0.57]
[1757058421963,7.67,207.86,207.78,1.40419616]
[1757058422159,9.07419616,207.86,207.77,0.57]
[1757058422370,74.26473739,207.97,207.71,309.84]
[1757058422371,1.40419616,207.89,207.79,0.57]
[1757058422567,7.67,207.9,207.8,4.25513613]
[1757058422768,7.67,207.9,207.83,1.40419616]
[1757058422964,7.67,207.9,207.84,4.25294608]
[1757058423166,7.67,207.9,207.84,1.40419616]
[1757058423561,1.40419616,207.93,207.84,1.40419616]
[1757058423766,7.67,207.94,207.86,1.40419616]
[1757058423969,9.07419616,207.94,207.86,1.40419616]
[1757058424369,9.07419616,207.94,207.85,0.57]
[1757058424570,7.67,207.89,207.81,0.57]
[1757058425066,0.03303102,207.87,207.83,0.03316717]
[1757058425467,7.67,207.86,207.79,1.40419616]
[1757058425768,9.07419616,207.86,207.78,1.40419616]
[1757058426071,9.07419616,207.86,207.79,4.25838249]
[1757058426371,7.67,207.86,207.78,1.40419616]
[1757058426571,7.67,207.86,207.79,4.25871446]
[1757058426871,7.67,207.86,207.79,0.57]
[1757058427069,7.67,207.86,207.8,5.66361895]
[1757058427271,7.67,207.88,207.81,4.25942279]
[1757058427471,7.67,207.88,207.8,1.40419616]
[1757058429371,7.67,207.86,207.78,1.40419616]
[1757058429575,7.67,207.86,207.79,4.26179835]
[1757058429873,7.67,207.86,207.77,1.40419616]
[1757058430074,7.67,207.86,207.78,4.26296226]
[1757058430271,7.67,207.86,207.79,4.26296226]
[1757058430576,7.67,207.86,207.77,1.40419616]
[1757058430773,7.67,207.86,207.78,4.26316408]
[1757058431076,7.67,207.86,207.79,4.26316408]
[1757058431276,7.67,207.86,207.77,1.40419616]
[1757058431470,7.67,207.86,207.78,4.26265503]
[1757058431677,7.67,207.86,207.79,5.66685119]
[1757058431977,7.67,207.86,207.79,1.40419616]
[1757058432376,7.67,207.86,207.8,4.26292039]
[1757058432573,7.67,207.86,207.82,0.57]
[1757058432777,7.67,207.86,207.73,106.9107784]
[1757058432778,1.40419616,207.92,207.78,0.57]
[1757058433080,7.67,207.92,207.84,1.97419616]
[1757058433370,7.67,207.92,207.88,1.97419616]
[1757058433971,7.67,207.92,207.88,0.57]
[1757058434476,7.67,207.92,207.88,1.97419616]
[1757058434777,1.40419616,207.97,207.88,1.40419616]
[1757058434978,7.67,207.96,207.9,1.40419616]
[1757058435275,7.67,207.96,207.91,4.82889977]
[1757058435476,7.67,207.96,207.91,0.57]
[1757058435977,1.40419616,207.98,207.89,1.40419616]
[1757058436174,7.67,207.97,207.9,4.25817323]
[1757058436380,7.67,207.97,207.89,1.40419616]
[1757058436679,7.67,207.95,207.86,1.40419616]
[1757058436879,7.67,207.93,207.87,4.25864108]